fUST/lending_fUST_20250708
["ID","MTS","AMOUNT","RATE_DAILY","PERIOD"]
[370317144,1751951442126,-49.1124507,0.00019178,2]
[370317148,1751951446515,-409.0006823,0.00019178,2]
[370317172,1751952366277,12227.0865088,0.00017963,2]
[370317175,1751952391129,-153.27415332,0.00018031,2]
[370317176,1751952475266,583.05421266,0.00018,2]
[370317195,1751952632608,-9.71770348,0.00018031,2]
[370317196,1751952632622,-160.0,0.00018217,2]
[370317197,1751952632633,-160.0,0.00018337,3]
[370317198,1751952632643,-302.27217181,0.0001857,2]
[370317199,1751952632670,-407.96641018,0.0001857,2]
[370317200,1751952632727,-496.86906882,0.0001857,2]
[370317201,1751952632738,-160.0,0.0001867,4]
[370317203,1751952632747,-2070.74961564,0.000189,2]
[370317204,1751952632759,-849.15271137,0.000189,2]
[370317207,1751952632768,-1200.0,0.00018976,2]
[370317210,1751952632778,-207.4,0.00018989,2]
[370317213,1751952632787,-300.0,0.00018996,2]
[370317214,1751952632796,-138.99012958,0.00018996,2]
[370317215,1751952632812,-161.00987042,0.00018996,2]
[370317217,1751952632823,-152.72929377,0.00018996,2]
[370317297,1751952638558,-147.27070623,0.00018996,2]
[370317298,1751952638568,-300.0,0.00018996,2]
[370317299,1751952638578,-300.0,0.00018996,2]
[370317300,1751952638588,-5534.53,0.00019,2]
[370317301,1751952638599,-160.0,0.00019003,5]
[370317302,1751952638610,-855.20810091,0.00019041,2]
[370317303,1751952638623,-777.13026737,0.00019041,2]
[370317304,1751952638632,-837.92,0.00019068,3]
[370317305,1751952638642,-418.96,0.00019068,3]
[370317306,1751952638652,-209.48,0.00019068,3]
[370317307,1751952638662,-174.57,0.00019068,3]
[370317308,1751952638671,-315.47167637,0.00019068,3]
[370317309,1751952638683,-208.26832363,0.00019068,3]
[370317310,1751952638694,-500.0,0.00019077,2]
[370317311,1751952638704,-500.0,0.00019077,2]
[370317312,1751952638714,-500.0,0.00019077,2]
[370317313,1751952638724,-316.23636937,0.00019077,2]
[370317314,1751952638733,-500.0,0.00019077,2]
[370317315,1751952638743,-500.0,0.00019077,2]
[370317316,1751952638753,-500.0,0.00019077,2]
[370317317,1751952638763,-500.0,0.00019077,2]
[370317318,1751952638773,-649.68583008,0.00019077,2]
[370317319,1751952638783,-500.0,0.00019077,2]
[370317320,1751952638793,-500.0,0.00019077,2]
[370317321,1751952638802,-500.0,0.00019077,2]
[370317322,1751952638812,-220.50844201,0.00019077,2]
[370317323,1751952638821,-500.0,0.00019077,2]
[370317324,1751952638831,-500.0,0.00019077,2]
[370317325,1751952638841,-500.0,0.00019077,2]
[370317326,1751952638851,-500.0,0.00019077,2]
[370317327,1751952638861,-500.0,0.00019077,2]
[370317328,1751952638871,-500.0,0.00019077,2]
[370317329,1751952638880,-500.0,0.00019077,2]
[370317330,1751952638890,-500.0,0.00019077,2]
[370317331,1751952638899,-500.0,0.00019077,2]
[370317332,1751952638910,-508.38409275,0.00019077,2]
[370317333,1751952638919,-500.0,0.00019077,2]
[370317334,1751952638929,-500.0,0.00019077,2]
[370317335,1751952638939,-500.0,0.00019077,2]
[370317336,1751952638948,-500.0,0.00019077,2]
[370317337,1751952638957,-500.0,0.00019077,2]
[370317338,1751952638968,-500.0,0.00019077,2]
[370317339,1751952638981,-500.0,0.00019077,2]
[370317340,1751952639003,-500.0,0.00019077,2]
[370317341,1751952639025,-500.0,0.00019077,2]
[370317342,1751952639047,-500.0,0.00019077,2]
[370317343,1751952639069,-500.0,0.00019077,2]
[370317344,1751952639091,-500.0,0.00019077,2]
[370317345,1751952639115,-425.29291411,0.00019077,2]
[370317346,1751952639138,-138963.8681476,0.00019078,2]
[370317347,1751952639159,-500.0,0.00019099,2]
[370317348,1751952639182,-568.6789382,0.00019099,2]
[370317349,1751952639204,-500.0,0.00019099,2]
[370317350,1751952639233,-500.0,0.00019099,2]
[370317351,1751952639258,-500.0,0.00019099,2]
[370317352,1751952639284,-500.0,0.00019099,2]
[370317353,1751952639299,-500.0,0.00019099,2]
[370317354,1751952639309,-500.0,0.00019099,2]
[370317355,1751952639319,-500.0,0.00019099,2]
[370317356,1751952639328,-500.0,0.00019099,2]
[370317357,1751952639338,-500.0,0.00019099,2]
[370317358,1751952639347,-500.0,0.00019099,2]
[370317359,1751952639357,-500.0,0.00019099,2]
[370317360,1751952639367,-500.0,0.00019099,2]
[370317361,1751952639376,-490.09505766,0.00019099,2]
[370317362,1751952639386,-160029.6503643,0.000191,2]
[370317363,1751952639396,-2070.74961559,0.00019141,2]
[370317364,1751952639406,-501.56992579,0.00019173,2]
[370317365,1751952639416,-500.0,0.00019173,2]
[370317366,1751952639425,-502.51817603,0.00019173,2]
[370317367,1751952639435,-500.71541439,0.00019173,2]
[370317368,1751952639445,-501.51677689,0.00019173,2]
[370317369,1751952639455,-500.0,0.00019173,2]
[370317370,1751952639464,-500.0,0.00019173,2]
[370317371,1751952639473,-500.0,0.00019173,2]
[370317372,1751952639483,-466.79825437,0.00019178,2]
[370317373,1751952639493,-460.0,0.00019178,2]
[370317374,1751952639506,-460.0,0.00019178,2]
[370317375,1751952639516,-460.62639591,0.00019178,2]
[370317376,1751952639677,-460.0,0.00019178,2]
[370317377,1751952639688,-180.54855024,0.00019178,2]
[370317378,1751952639698,-460.0,0.00019178,2]
[370317379,1751952639707,-460.0,0.00019178,2]
[370317380,1751952639720,-466.0159401,0.00019178,2]
[370317381,1751952639730,-460.0,0.00019178,2]
[370317382,1751952639740,-460.0,0.00019178,2]
[370317383,1751952639750,-460.0,0.00019178,2]
[370317384,1751952639759,-460.0,0.00019178,2]
[370317385,1751952639770,-460.0,0.00019178,2]
[370317386,1751952639780,-295.01143006,0.00019178,2]
[370317387,1751952639790,-460.0,0.00019178,2]
[370317388,1751952639800,-229.01872896,0.00019178,2]
[370317389,1751952639809,-463.15177712,0.00019178,2]
[370317390,1751952639819,-460.0,0.00019178,2]
[370317391,1751952639829,-460.0,0.00019178,2]
[370317392,1751952639839,-460.0,0.00019178,2]
[370317393,1751952639849,-460.0,0.00019178,2]
[370317394,1751952639859,-500.0,0.00019178,2]
[370317395,1751952639869,-500.0,0.00019178,2]
[370317396,1751952639878,-500.0,0.00019178,2]
[370317397,1751952639889,-500.0,0.00019178,2]
[370317398,1751952639898,-500.0,0.00019178,2]
[370317399,1751952639909,-500.0,0.00019178,2]
[370317400,1751952639918,-460.0,0.00019178,2]
[370317401,1751952639928,-460.0,0.00019178,2]
[370317402,1751952639938,-460.0,0.00019178,2]
[370317403,1751952639947,-460.0,0.00019178,2]
[370317404,1751952639956,-460.0,0.00019178,2]
[370317405,1751952639967,-460.0,0.00019178,2]
[370317406,1751952639976,-312.96872419,0.00019178,2]
[370317407,1751952639986,-462.77374306,0.00019178,2]
[370317408,1751952639995,-460.0,0.00019178,2]
[370317409,1751952640005,-460.0,0.00019178,2]
[370317410,1751952640018,-462.72454661,0.00019178,2]
[370317411,1751952640029,-460.0,0.00019178,2]
[370317412,1751952640038,-460.0,0.00019178,2]
[370317413,1751952640048,-460.0,0.00019178,2]
[370317414,1751952640057,-460.86839556,0.00019178,2]
[370317415,1751952640067,-461.36749075,0.00019178,2]
[370317416,1751952640078,-463.64512242,0.00019178,2]
[370317417,1751952640087,-461.53987784,0.00019178,2]
[370317418,1751952640097,-460.0,0.00019178,2]
[370317419,1751952640107,-173.86101571,0.00019178,2]
[370317420,1751952640116,-460.0,0.00019178,2]
[370317421,1751952640126,-579.75195799,0.00019178,2]
[370317422,1751952640136,-462.2712313,0.00019178,2]
[370317423,1751952640145,-465.1286911,0.00019178,2]
[370317424,1751952640155,-460.0,0.00019178,2]
[370317425,1751952640165,-460.0,0.00019178,2]
[370317426,1751952640175,-460.0,0.00019178,2]
[370317427,1751952640185,-460.0,0.00019178,2]
[370317428,1751952640195,-543.36472918,0.00019178,2]
[370317429,1751952640204,-251.64331887,0.00019178,2]
[370317430,1751952640214,-460.0,0.00019178,2]
[370317431,1751952640224,-460.0,0.00019178,2]
[370317432,1751952640234,-416.80918711,0.00019178,2]
[370317433,1751952640244,-298.15284665,0.00019178,2]
[370317434,1751952640254,-460.0,0.00019178,2]
[370317435,1751952640264,-510.58680343,0.00019178,2]
[370317436,1751952640273,-460.0,0.00019178,2]
[370317437,1751952640283,-460.54991565,0.00019178,2]
[370317438,1751952640292,-460.0,0.00019178,2]
[370317439,1751952640302,-460.0,0.00019178,2]
[370317440,1751952640312,-460.0,0.00019178,2]
[370317441,1751952640322,-460.0,0.00019178,2]
[370317442,1751952640332,-460.0,0.00019178,2]
[370317443,1751952640341,-460.0,0.00019178,2]
[370317445,1751952640352,-460.0,0.00019178,2]
[370317446,1751952640362,-404.00808908,0.00019178,2]
[370317447,1751952640372,-402.34417195,0.00019178,2]
[370317448,1751952640382,-460.0,0.00019178,2]
[370317449,1751952640392,-460.0,0.00019178,2]
[370317450,1751952640402,-460.0,0.00019178,2]
[370317451,1751952640412,-460.0,0.00019178,2]
[370317452,1751952640423,-460.0,0.00019178,2]
[370317453,1751952640433,-460.0,0.00019178,2]
[370317455,1751952640443,-460.0,0.00019178,2]
[370317456,1751952640453,-460.0,0.00019178,2]
[370317457,1751952640464,-460.0,0.00019178,2]
[370317459,1751952640473,-460.0,0.00019178,2]
[370317460,1751952640483,-460.0,0.00019178,2]
[370317461,1751952640494,-194.78684376,0.00019178,2]
[370317462,1751952640504,-460.0,0.00019178,2]
[370317463,1751952640514,-460.0,0.00019178,2]
[370317464,1751952640524,-465.67768986,0.00019178,2]
[370317465,1751952640534,-461.12676401,0.00019178,2]
[370317466,1751952640543,-460.0,0.00019178,2]
[370317467,1751952640553,-460.0,0.00019178,2]
[370317468,1751952640563,-460.0,0.00019178,2]
[370317469,1751952640573,-461.14424883,0.00019178,2]
[370317470,1751952640583,-460.0,0.00019178,2]
[370317471,1751952640593,-460.0,0.00019178,2]
[370317472,1751952640603,-460.0,0.00019178,2]
[370317473,1751952640613,-462.39441118,0.00019178,2]
[370317475,1751952640623,-460.0,0.00019178,2]
[370317476,1751952640633,-460.0,0.00019178,2]
[370317477,1751952640643,-462.05575856,0.00019178,2]
[370317478,1751952640653,-460.0,0.00019178,2]
[370317479,1751952640663,-461.27669522,0.00019178,2]
[370317480,1751952640673,-463.22477532,0.00019178,2]
[370317481,1751952640684,-467.94476149,0.00019178,2]
[370317483,1751952640694,-510.70723587,0.00019178,2]
[370317485,1751952640703,-484.11034715,0.00019178,2]
[370317487,1751952640713,-460.0,0.00019178,2]
[370317488,1751952640722,-454.77265577,0.00019178,2]
[370317490,1751952640732,-461.63890809,0.00019178,2]
[370317492,1751952640742,-460.0,0.00019178,2]
[370317493,1751952640752,-460.0,0.00019178,2]
[370317494,1751952640761,-358.11666813,0.00019178,2]
[370317495,1751952640771,-460.0,0.00019178,2]
[370317496,1751952640781,-460.0,0.00019178,2]
[370317497,1751952640791,-460.0,0.00019178,2]
[370317498,1751952640800,-460.0,0.00019178,2]
[370317499,1751952640810,-464.64748081,0.00019178,2]
[370317501,1751952640819,-460.0,0.00019178,2]
[370317502,1751952640829,-461.67212928,0.00019178,2]
[370317503,1751952640838,-460.0,0.00019178,2]
[370317504,1751952640847,-466.57299953,0.00019178,2]
[370317505,1751952640857,-460.0,0.00019178,2]
[370317506,1751952640867,-460.0,0.00019178,2]
[370317507,1751952640877,-518.86430915,0.00019178,2]
[370317508,1751952640887,-461.29989799,0.00019178,2]
[370317509,1751952640897,-460.0,0.00019178,2]
[370317510,1751952640907,-370.75545723,0.00019178,2]
[370317511,1751952640917,-460.0,0.00019178,2]
[370317512,1751952640926,-460.0,0.00019178,2]
[370317513,1751952640936,-460.0,0.00019178,2]
[370317514,1751952640945,-460.0,0.00019178,2]
[370317515,1751952640955,-462.07229273,0.00019178,2]
[370317516,1751952640966,-460.0,0.00019178,2]
[370317517,1751952640975,-460.0,0.00019178,2]
[370317518,1751952640985,-460.0,0.00019178,2]
[370317519,1751952640995,-463.07447806,0.00019178,2]
[370317520,1751952641004,-460.0,0.00019178,2]
[370317521,1751952641017,-462.87673652,0.00019178,2]
[370317522,1751952641027,-460.0,0.00019178,2]
[370317523,1751952641037,-460.0,0.00019178,2]
[370317524,1751952641047,-460.0,0.00019178,2]
[370317525,1751952641056,-460.0,0.00019178,2]
[370317526,1751952641065,-460.0,0.00019178,2]
[370317527,1751952641075,-460.0,0.00019178,2]
[370317528,1751952641084,-460.0,0.00019178,2]
[370317529,1751952641094,-460.0,0.00019178,2]
[370317530,1751952641103,-460.0,0.00019178,2]
[370317531,1751952641113,-460.0,0.00019178,2]
[370317532,1751952641122,-460.0,0.00019178,2]
[370317533,1751952641132,-460.0,0.00019178,2]
[370317534,1751952641141,-461.09750368,0.00019178,2]
[370317535,1751952641153,-460.0,0.00019178,2]
[370317536,1751952641163,-508.39185992,0.00019178,2]
[370317537,1751952641173,-553.4729292,0.00019178,2]
[370317538,1751952641182,-185.17200509,0.00019178,2]
[370317539,1751952641191,-460.0,0.00019178,2]
[370317540,1751952641201,-460.0,0.00019178,2]
[370317541,1751952641210,-460.0,0.00019178,2]
[370317542,1751952641222,-460.0,0.00019178,2]
[370317543,1751952641232,-216.77210225,0.00019178,2]
[370317544,1751952641241,-460.0,0.00019178,2]
[370317545,1751952641251,-461.67340762,0.00019178,2]
[370317546,1751952641260,-460.0,0.00019178,2]
[370317547,1751952641270,-460.0,0.00019178,2]
[370317548,1751952641279,-460.0,0.00019178,2]
[370317549,1751952641288,-460.0,0.00019178,2]
[370317550,1751952641298,-460.0,0.00019178,2]
[370317551,1751952641307,-460.0,0.00019178,2]
[370317552,1751952641317,-460.0,0.00019178,2]
[370317553,1751952641328,-460.0,0.00019178,2]
[370317554,1751952641337,-460.0,0.00019178,2]
[370317555,1751952641347,-507.23820258,0.00019178,2]
[370317556,1751952641357,-460.0,0.00019178,2]
[370317557,1751952641367,-460.0,0.00019178,2]
[370317558,1751952641377,-460.0,0.00019178,2]
[370317559,1751952641387,-460.0,0.00019178,2]
[370317560,1751952641397,-460.0,0.00019178,2]
[370317561,1751952641407,-460.0,0.00019178,2]
[370317562,1751952641416,-460.0,0.00019178,2]
[370317563,1751952641426,-462.0807414,0.00019178,2]
[370317564,1751952641435,-461.886867,0.00019178,2]
[370317565,1751952641445,-460.0,0.00019178,2]
[370317566,1751952641455,-463.03405252,0.00019178,2]
[370317567,1751952641466,-460.0,0.00019178,2]
[370317568,1751952641476,-460.0,0.00019178,2]
[370317569,1751952641486,-462.80588235,0.00019178,2]
[370317570,1751952641495,-462.46951136,0.00019178,2]
[370317571,1751952641504,-460.0,0.00019178,2]
[370317572,1751952641514,-460.0,0.00019178,2]
[370317573,1751952641523,-460.0,0.00019178,2]
[370317574,1751952641533,-460.0,0.00019178,2]
[370317575,1751952641542,-364.36056248,0.00019178,2]
[370317576,1751952641551,-461.41671864,0.00019178,2]
[370317577,1751952641561,-460.0,0.00019178,2]
[370317578,1751952641570,-460.0,0.00019178,2]
[370317579,1751952641580,-460.0,0.00019178,2]
[370317580,1751952641590,-499.64743257,0.00019178,2]
[370317581,1751952641599,-460.0,0.00019178,2]
[370317582,1751952641609,-460.0,0.00019178,2]
[370317583,1751952641618,-224.05316325,0.00019178,2]
[370317584,1751952641628,-460.0,0.00019178,2]
[370317585,1751952641637,-460.97783107,0.00019178,2]
[370317586,1751952641647,-460.0,0.00019178,2]
[370317587,1751952641656,-464.00365792,0.00019178,2]
[370317588,1751952641666,-460.0,0.00019178,2]
[370317589,1751952641676,-460.0,0.00019178,2]
[370317590,1751952641685,-460.0,0.00019178,2]
[370317591,1751952641695,-460.0,0.00019178,2]
[370317592,1751952641705,-460.0,0.00019178,2]
[370317593,1751952641714,-460.0,0.00019178,2]
[370317594,1751952641724,-460.0,0.00019178,2]
[370317595,1751952641733,-460.0,0.00019178,2]
[370317596,1751952641743,-460.0,0.00019178,2]
[370317597,1751952641752,-460.0,0.00019178,2]
[370317598,1751952641762,-460.0,0.00019178,2]
[370317599,1751952641771,-460.0,0.00019178,2]
[370317600,1751952641780,-460.0,0.00019178,2]
[370317601,1751952641790,-460.0,0.00019178,2]
[370317602,1751952641799,-460.0,0.00019178,2]
[370317603,1751952641808,-460.0,0.00019178,2]
[370317604,1751952641818,-464.70495876,0.00019178,2]
[370317605,1751952641827,-460.0,0.00019178,2]
[370317606,1751952641836,-460.0,0.00019178,2]
[370317607,1751952641845,-460.0,0.00019178,2]
[370317608,1751952641855,-460.0,0.00019178,2]
[370317609,1751952641864,-460.0,0.00019178,2]
[370317610,1751952641873,-460.0,0.00019178,2]
[370317611,1751952641883,-460.0,0.00019178,2]
[370317612,1751952641894,-460.0,0.00019178,2]
[370317613,1751952641905,-460.0,0.00019178,2]
[370317614,1751952641914,-460.0,0.00019178,2]
[370317615,1751952641924,-460.0,0.00019178,2]
[370317616,1751952641933,-465.81446955,0.00019178,2]
[370317617,1751952641943,-460.0,0.00019178,2]
[370317618,1751952641955,-461.98787167,0.00019178,2]
[370317619,1751952641966,-460.0,0.00019178,2]
[370317620,1751952641975,-460.0,0.00019178,2]
[370317621,1751952641985,-460.0,0.00019178,2]
[370317622,1751952641994,-460.0,0.00019178,2]
[370317623,1751952642004,-460.0,0.00019178,2]
[370317624,1751952642014,-460.0,0.00019178,2]
[370317625,1751952642024,-460.0,0.00019178,2]
[370317626,1751952642033,-464.06000432,0.00019178,2]
[370317627,1751952642042,-500.0,0.00019178,2]
[370317628,1751952642051,-460.0,0.00019178,2]
[370317629,1751952642061,-460.0,0.00019178,2]
[370317630,1751952642070,-479.36262082,0.00019178,2]
[370317631,1751952642081,-315.35169802,0.00019178,2]
[370317632,1751952642091,-460.12318963,0.00019178,2]
[370317633,1751952642100,-460.0,0.00019178,2]
[370317634,1751952642109,-460.0,0.00019178,2]
[370317635,1751952642119,-460.0,0.00019178,2]
[370317636,1751952642128,-460.0,0.00019178,2]
[370317637,1751952642137,-461.74777961,0.00019178,2]
[370317638,1751952642147,-460.0,0.00019178,2]
[370317639,1751952642158,-901.98282461,0.00019178,2]
[370317640,1751952642167,-460.0,0.00019178,2]
[370317641,1751952642177,-460.0,0.00019178,2]
[370317642,1751952642186,-460.0,0.00019178,2]
[370317643,1751952642197,-460.0,0.00019178,2]
[370317644,1751952642207,-460.0,0.00019178,2]
[370317645,1751952642219,-460.0,0.00019178,2]
[370317646,1751952642228,-460.0,0.00019178,2]
[370317647,1751952642237,-468.72437792,0.00019178,2]
[370317648,1751952642246,-466.80422252,0.00019178,2]
[370317649,1751952642256,-460.0,0.00019178,2]
[370317650,1751952642265,-460.0,0.00019178,2]
[370317651,1751952642274,-460.0,0.00019178,2]
[370317652,1751952642284,-464.71632842,0.00019178,2]
[370317653,1751952642293,-462.35633799,0.00019178,2]
[370317654,1751952642303,-460.0,0.00019178,2]
[370317655,1751952642313,-460.0,0.00019178,2]
[370317656,1751952642323,-460.0,0.00019178,2]
[370317657,1751952642333,-460.0,0.00019178,2]
[370317658,1751952642342,-460.70810254,0.00019178,2]
[370317659,1751952642352,-460.0,0.00019178,2]
[370317660,1751952642362,-460.0,0.00019178,2]
[370317661,1751952642372,-460.0,0.00019178,2]
[370317662,1751952642381,-460.0,0.00019178,2]
[370317663,1751952642391,-316.97761444,0.00019178,2]
[370317664,1751952642402,-460.0,0.00019178,2]
[370317665,1751952642412,-460.0,0.00019178,2]
[370317666,1751952642421,-460.0,0.00019178,2]
[370317667,1751952642431,-460.0,0.00019178,2]
[370317668,1751952642441,-460.0,0.00019178,2]
[370317669,1751952642450,-151.0,0.00019178,2]
[370317670,1751952642460,-460.0,0.00019178,2]
[370317671,1751952642470,-460.0,0.00019178,2]
[370317672,1751952642479,-460.0,0.00019178,2]
[370317673,1751952642487,-460.0,0.00019178,2]
[370317674,1751952642497,-339.46661334,0.00019178,2]
[370317675,1751952642506,-460.0,0.00019178,2]
[370317676,1751952642516,-460.0,0.00019178,2]
[370317677,1751952642525,-460.0,0.00019178,2]
[370317678,1751952642535,-460.0,0.00019178,2]
[370317679,1751952642545,-460.0,0.00019178,2]
[370317680,1751952642554,-460.0,0.00019178,2]
[370317681,1751952642564,-1489.13,0.00019178,2]
[370317682,1751952642574,-500.0,0.00019178,2]
[370317683,1751952642583,-498.91,0.00019178,2]
[370317684,1751952642592,-460.0,0.00019178,2]
[370317685,1751952642602,-460.0,0.00019178,2]
[370317686,1751952642611,-460.0,0.00019178,2]
[370317687,1751952642620,-460.0,0.00019178,2]
[370317688,1751952642630,-460.0,0.00019178,2]
[370317689,1751952642639,-463.17199371,0.00019178,2]
[370317690,1751952642649,-463.01720261,0.00019178,2]
[370317691,1751952642658,-412.87076751,0.00019178,2]
[370317692,1751952642668,-465.05393481,0.00019178,2]
[370317693,1751952642801,-460.0,0.00019178,2]
[370317694,1751952642812,-462.88990773,0.00019178,2]
[370317695,1751952642822,-293.73942522,0.00019178,2]
[370317696,1751952642832,-460.0,0.00019178,2]
[370317697,1751952642842,-460.0,0.00019178,2]
[370317698,1751952642852,-460.0,0.00019178,2]
[370317699,1751952642862,-500.0,0.00019178,2]
[370317700,1751952642872,-460.0,0.00019178,2]
[370317701,1751952642882,-500.0,0.00019178,2]
[370317702,1751952642892,-500.0,0.00019178,2]
[370317703,1751952642901,-500.0,0.00019178,2]
[370317704,1751952642911,-500.0,0.00019178,2]
[370317705,1751952642921,-500.0,0.00019178,2]
[370317706,1751952642931,-500.0,0.00019178,2]
[370317707,1751952642941,-500.0,0.00019178,2]
[370317708,1751952642951,-500.0,0.00019178,2]
[370317709,1751952642961,-500.0,0.00019178,2]
[370317710,1751952642971,-460.0,0.00019178,2]
[370317711,1751952642981,-460.0,0.00019178,2]
[370317712,1751952642991,-461.53552279,0.00019178,2]
[370317713,1751952643002,-460.0,0.00019178,2]
[370317714,1751952643013,-462.28208702,0.00019178,2]
[370317715,1751952643023,-343.23801622,0.00019178,2]
[370317716,1751952643033,-460.0,0.00019178,2]
[370317717,1751952643042,-460.0,0.00019178,2]
[370317718,1751952643051,-460.0,0.00019178,2]
[370317719,1751952643063,-460.0,0.00019178,2]
[370317720,1751952643073,-460.0,0.00019178,2]
[370317721,1751952643083,-460.0,0.00019178,2]
[370317722,1751952643096,-460.0,0.00019178,2]
[370317723,1751952643106,-460.0,0.00019178,2]
[370317724,1751952643116,-460.0,0.00019178,2]
[370317725,1751952643125,-465.21340009,0.00019178,2]
[370317726,1751952643135,-460.0,0.00019178,2]
[370317727,1751952643145,-460.0,0.00019178,2]
[370317728,1751952643156,-460.0,0.00019178,2]
[370317729,1751952643166,-460.0,0.00019178,2]
[370317730,1751952643176,-430.75023756,0.00019178,2]
[370317731,1751952643186,-1060.48,0.00019178,2]
[370317732,1751952643195,-460.0,0.00019178,2]
[370317733,1751952643206,-460.0,0.00019178,2]
[370317734,1751952643216,-460.0,0.00019178,2]
[370317735,1751952643226,-460.0,0.00019178,2]
[370317736,1751952643235,-151.16695,0.00019178,2]
[370317737,1751952643245,-460.0,0.00019178,2]
[370317738,1751952643255,-460.0,0.00019178,2]
[370317739,1751952643265,-460.0,0.00019178,2]
[370317740,1751952643275,-460.0,0.00019178,2]
[370317741,1751952643285,-460.0,0.00019178,2]
[370317742,1751952643295,-568.47771421,0.00019178,2]
[370317743,1751952643305,-460.0,0.00019178,2]
[370317744,1751952643315,-460.0,0.00019178,2]
[370317745,1751952643325,-460.0,0.00019178,2]
[370317746,1751952643335,-460.0,0.00019178,2]
[370317747,1751952643344,-460.0,0.00019178,2]
[370317748,1751952643354,-460.0,0.00019178,2]
[370317750,1751952643364,-460.0,0.00019178,2]
[370317751,1751952643374,-460.0,0.00019178,2]
[370317753,1751952643384,-460.0,0.00019178,2]
[370317754,1751952643394,-151.0,0.00019178,2]
[370317755,1751952643403,-460.0,0.00019178,2]
[370317756,1751952643414,-460.0,0.00019178,2]
[370317757,1751952643423,-460.0,0.00019178,2]
[370317759,1751952643433,-460.0,0.00019178,2]
[370317760,1751952643443,-462.18350068,0.00019178,2]
[370317761,1751952643452,-460.0,0.00019178,2]
[370317762,1751952643462,-460.0,0.00019178,2]
[370317763,1751952643472,-460.0,0.00019178,2]
[370317764,1751952643482,-2185.33,0.00019178,2]
[370317766,1751952643492,-460.0,0.00019178,2]
[370317768,1751952643501,-747.77,0.00019178,2]
[370317769,1751952643511,-460.0,0.00019178,2]
[370317770,1751952643521,-460.0,0.00019178,2]
[370317771,1751952643531,-460.0,0.00019178,2]
[370317772,1751952643541,-460.0,0.00019178,2]
[370317773,1751952643551,-460.0,0.00019178,2]
[370317774,1751952643560,-460.0,0.00019178,2]
[370317775,1751952643570,-460.0,0.00019178,2]
[370317776,1751952643580,-460.0,0.00019178,2]
[370317777,1751952643590,-460.0,0.00019178,2]
[370317778,1751952643601,-460.0,0.00019178,2]
[370317780,1751952643612,-460.0,0.00019178,2]
[370317781,1751952643622,-393.49709009,0.00019178,2]
[370317782,1751952643631,-460.0,0.00019178,2]
[370317783,1751952643641,-460.0,0.00019178,2]
[370317784,1751952643651,-2259.67,0.00019178,2]
[370317785,1751952643661,-460.0,0.00019178,2]
[370317786,1751952643670,-461.64819029,0.00019178,2]
[370317787,1751952643679,-460.0,0.00019178,2]
[370317788,1751952643689,-460.0,0.00019178,2]
[370317789,1751952643699,-460.0,0.00019178,2]
[370317790,1751952643708,-460.0,0.00019178,2]
[370317791,1751952643719,-460.0,0.00019178,2]
[370317792,1751952643728,-460.0,0.00019178,2]